bitfinex/quotes_ETHUSD_20240604
["timestamp","ask_amount","ask_price","bid_price","bid_amount"]
[1717459567682,0.24177439,3768.0,3767.2,0.566]
[1717459568005,0.24177439,3768.0,3767.1,1.32126577]
[1717459568210,0.72461644,3767.9,3767.1,1.32126577]
[1717459568412,0.24177439,3768.0,3767.1,1.32126577]
[1717459568626,7.32,3768.3,3767.2,2.52388381]
[1717459568784,0.24184792,3767.9,3767.3,1.32126577]
[1717459568986,7.32,3768.3,3767.3,1.32126577]
[1717459569194,0.24184792,3768.2,3767.3,1.32126577]
[1717459570397,0.24184792,3768.2,3767.5,1.32126577]
[1717459570756,7.32,3768.8,3767.5,1.32126577]
[1717459570893,0.24197829,3768.1,3767.5,1.32126577]
[1717459571095,2.4366,3769.2,3767.5,1.32126577]
[1717459571338,0.24197829,3769.1,3767.5,1.32126577]
[1717459571737,3.24197829,3769.1,3767.5,1.32126577]
[1717459572596,3.24197829,3769.1,3767.5,2.67826577]
[1717459573144,3.24197829,3769.1,3767.7,3.73056577]
[1717459573297,0.24197829,3769.1,3767.7,3.73056577]
[1717459574274,0.24197829,3769.1,3767.8,1.32126577]
[1717459574845,2.3902,3769.5,3767.8,1.32126577]
[1717459575170,7.32,3769.7,3768.2,1.32126577]
[1717459575481,0.24217545,3769.6,3768.2,1.32126577]
[1717459576065,3.0,3769.9,3768.2,1.32126577]
[1717459576367,2.3406,3770.0,3768.4,2.4384]
[1717459576685,0.24317167,3769.9,3768.5,1.32126577]
[1717459577987,3.24317167,3769.9,3768.5,1.32126577]
[1717459578665,3.0,3769.8,3768.5,1.32126577]
[1717459578855,0.2432151,3769.8,3768.5,1.32126577]
[1717459579255,3.0,3770.2,3768.5,1.32126577]
[1717459579590,1.26583,3770.1,3768.5,1.32126577]
[1717459579900,0.2432919,3770.0,3768.5,1.32126577]
[1717459580976,0.2432919,3770.0,3768.6,2.3086]
[1717459581294,3.0,3770.3,3768.7,1.32126577]
[1717459581460,0.24330527,3769.9,3768.7,1.32126577]
[1717459581787,0.24330527,3769.8,3768.7,1.32126577]
[1717459581942,3.0,3770.3,3768.7,1.32126577]
[1717459582144,0.77723547,3770.2,3768.7,1.32126577]
[1717459582395,0.24340547,3770.2,3768.7,1.32126577]
[1717459593600,2.3547,3770.1,3768.7,1.32126577]
[1717459593898,2.3547,3770.1,3768.6,2.3086]
[1717459593899,0.24338543,3770.0,3768.6,2.3086]
[1717459594102,0.24338543,3770.0,3768.6,3.62986577]
[1717459594103,0.55980854,3769.9,3768.6,3.62986577]
[1717459594455,0.24329525,3769.8,3768.6,3.62986577]
[1717459595799,2.4923,3769.7,3768.6,2.3086]
[1717459595965,5.4923,3769.7,3768.6,2.3086]
[1717459596166,0.8727922,3769.6,3768.6,2.3086]
[1717459596366,3.8727922,3769.6,3768.6,2.3086]
[1717459598777,3.8727922,3769.6,3767.9,2.4496]
[1717459599085,1.58577586,3769.4,3768.0,1.32126577]
[1717459599396,0.60321051,3769.3,3768.0,1.32126577]
[1717459599596,0.8463855,3769.3,3768.0,1.32126577]
[1717459600464,5.43216136,3769.3,3768.0,1.32126577]
[1717459600900,2.43216136,3769.3,3768.0,1.32126577]
[1717459601590,5.43216136,3769.3,3768.0,1.32126577]
[1717459601786,0.60056923,3769.2,3768.0,1.32126577]
[1717459602178,1.58577586,3769.3,3768.0,1.32126577]
[1717459602375,0.24317499,3769.1,3768.0,1.32126577]
[1717459603216,2.4682,3769.0,3768.0,1.32126577]
[1717459603408,5.4682,3769.0,3768.0,1.32126577]
[1717459603566,0.24307475,3768.9,3768.0,1.32126577]
[1717459603895,0.24307475,3768.9,3767.5,2.3718]
[1717459603896,0.57112748,3768.8,3767.5,2.3718]
[1717459604268,0.24285091,3768.7,3767.6,1.32126577]
[1717459604419,1.82772043,3768.7,3767.6,1.32126577]
[1717459604712,2.4371,3768.6,3767.6,1.32126577]
[1717459604928,1.14094969,3768.5,3767.6,1.32126577]
[1717459605243,4.38363015,3768.5,3767.6,1.32126577]
[1717459605379,3.24268046,3768.5,3767.6,1.32126577]
[1717459605574,3.24268046,3768.5,3767.1,2.4649]
[1717459605780,3.24268046,3768.5,3767.2,1.32126577]
[1717459606007,5.40122489,3768.5,3767.2,1.32126577]
[1717459606218,2.426,3768.3,3766.7,2.349]
[1717459606391,0.24261363,3768.2,3766.8,1.32126577]
[1717459606728,2.426,3768.1,3766.8,1.32126577]
[1717459606891,2.15861895,3768.0,3766.8,1.32126577]
[1717459607103,2.3714,3767.9,3766.3,0.0265188]
[1717459607282,0.7530019,3767.8,3766.4,1.32126577]
[1717459607475,0.7530019,3767.8,3766.5,2.2544]
[1717459607727,0.7530019,3767.8,3766.6,1.32126577]
[1717459607728,3.7530019,3767.8,3766.6,1.32126577]
[1717459607897,0.24247325,3767.7,3766.6,1.32126577]
[1717459608908,2.3687,3767.6,3766.6,1.32126577]
[1717459609111,0.63641752,3767.5,3766.6,1.32126577]
[1717459609276,3.87862,3767.5,3766.6,1.32126577]
[1717459609724,3.87862,3767.5,3766.3,0.0265188]
[1717459609935,3.87862,3767.5,3766.3,1.34778457]
[1717459610095,3.87862,3767.5,3766.4,1.32126577]
[1717459610295,3.24220248,3767.5,3766.5,2.2842]
[1717459610495,0.24220248,3767.5,3766.6,1.32126577]
[1717459610882,3.0,3768.2,3766.6,1.32126577]
[1717459611107,0.24190486,3767.4,3766.6,1.32126577]
[1717459611306,2.4316,3767.4,3766.6,1.32126577]
[1717459611624,0.24190486,3767.3,3766.6,1.32126577]
[1717459611824,3.0,3768.0,3766.6,1.32126577]
[1717459612035,1.0851585,3767.9,3766.6,1.32126577]
[1717459618799,1.0851585,3767.9,3766.3,0.0265188]
[1717459619099,1.0851585,3767.9,3766.5,2.4781]
[1717459619344,1.0851585,3767.9,3766.6,1.32126577]
[1717459620747,1.0851585,3767.9,3766.7,2.351]
[1717459620972,1.0851585,3767.9,3766.8,1.32126577]
[1717459621248,0.2419985,3767.9,3766.8,1.32126577]
[1717459624249,0.2419985,3767.9,3766.7,2.351]
[1717459624455,2.2816,3767.8,3766.3,2.4193188]
[1717459624628,4.08155871,3767.7,3766.3,1.34778457]
[1717459624826,5.4825,3767.6,3766.3,1.34778457]
[1717459625032,1.357,3767.3,3766.3,0.0265188]
[1717459625331,2.4825,3767.2,3766.3,0.0265188]
[1717459625639,2.3605,3767.1,3766.3,0.0265188]
[1717459625838,3.7175,3766.9,3766.3,0.0265188]
[1717459626138,3.0,3766.8,3766.3,0.0265188]
[1717459626370,3.24174434,3766.8,3766.3,0.0265188]
[1717459626749,1.357,3766.5,3766.3,0.0265188]
[1717459626959,2.3605,3766.4,3766.3,0.0265188]
[1717459627156,6.82381706,3766.4,3766.3,0.0265188]
[1717459627358,8.14508283,3766.4,3766.3,0.0265188]
[1717459627741,8.89508283,3766.4,3766.3,0.0265188]
[1717459628467,9.46914253,3766.4,3766.3,0.0265188]
[1717459629045,9.46917531,3766.4,3766.3,0.0265188]
[1717459630036,11.05357727,3766.4,3766.3,0.0265188]
[1717459631080,9.46917531,3766.4,3766.3,0.0265188]
[1717459631865,11.05365176,3766.4,3766.3,0.0265188]
[1717459632105,9.46917531,3766.4,3766.3,0.0265188]
[1717459632316,11.05365176,3766.4,3766.3,0.0265188]
[1717459633231,9.46917531,3766.4,3766.3,0.0265188]
[1717459633515,11.05373457,3766.4,3766.3,0.0265188]
[1717459634445,9.46917531,3766.4,3766.3,0.0265188]
[1717459636437,8.14790954,3766.4,3766.3,0.0265188]
[1717459636598,7.34790954,3766.4,3766.3,0.0265188]
[1717459636803,7.34788578,3766.4,3766.3,0.0265188]
[1717459637605,7.34784707,3766.4,3766.3,0.0265188]
[1717459640207,8.93233062,3766.4,3766.3,0.0265188]
[1717459641028,7.34784707,3766.4,3766.3,0.0265188]
[1717459641948,8.66911284,3766.4,3766.3,0.0265188]
[1717459642351,9.41911284,3766.4,3766.3,0.0265188]
[1717459642649,8.09784707,3766.4,3766.3,0.0265188]
[1717459643241,5.23734707,3766.4,3766.3,0.0265188]
[1717459643449,0.81559707,3766.4,3766.3,0.0265188]
[1717459643752,0.24156706,3766.4,3766.3,0.0265188]
[1717459643926,2.72916706,3766.4,3766.3,0.0265188]
[1717459644123,7.3137245,3766.4,3766.3,0.0265188]
[1717459644442,6.85319707,3766.4,3766.3,0.0265188]
[1717459644607,7.52701678,3766.4,3766.3,0.0265188]
[1717459644810,8.27701678,3766.4,3766.3,0.0265188]
[1717459648315,7.52701678,3766.4,3766.3,0.0265188]
[1717459648819,7.52702901,3766.4,3766.3,0.0265188]
[1717459649748,8.27702901,3766.4,3766.3,0.0265188]
[1717459649943,7.5917093,3766.4,3766.3,0.0265188]
[1717459650146,6.8417093,3766.4,3766.3,0.0265188]
[1717459652256,4.3541093,3766.4,3766.3,0.0265188]
[1717459652465,1.3541093,3766.4,3766.3,0.0265188]
[1717459652757,8.19521706,3766.4,3766.3,0.0265188]
[1717459652935,12.77960913,3766.4,3766.3,0.0265188]
[1717459653252,13.35349556,3766.4,3766.3,0.0265188]
[1717459653457,11.76917438,3766.4,3766.3,0.0265188]
[1717459654754,15.60114182,3766.4,3766.3,0.0265188]
[1717459654958,18.58584182,3766.4,3766.3,0.0265188]
[1717459655533,13.27574182,3766.4,3766.3,0.0265188]
[1717459656370,10.29104182,3766.4,3766.3,0.0265188]
[1717459656871,17.15615759,3766.4,3766.3,8.8e-06]
[1717459657099,17.33220027,3766.4,3766.3,8.8e-06]
[1717459657368,17.90628372,3766.4,3766.3,8.8e-06]
[1717459660249,17.90631338,3766.4,3766.3,8.8e-06]
[1717459661102,17.33220027,3766.4,3766.3,8.8e-06]
[1717459661307,17.90628695,3766.4,3766.3,8.8e-06]
[1717459663571,17.33220027,3766.4,3766.3,8.8e-06]
[1717459663778,17.90626509,3766.4,3766.3,8.8e-06]
[1717459674137,17.33220027,3766.4,3766.3,8.8e-06]
[1717459674349,17.9062965,3766.4,3766.3,8.8e-06]
[1717459678125,18.4722965,3766.4,3766.3,8.8e-06]
[1717459678328,18.47230186,3766.4,3766.3,8.8e-06]
[1717459678732,17.89820027,3766.4,3766.3,8.8e-06]
[1717459678941,18.47231381,3766.4,3766.3,8.8e-06]
[1717459679237,15.56751381,3766.4,3766.3,8.8e-06]
[1717459679418,16.13351381,3766.4,3766.3,8.8e-06]
[1717459681213,15.56751381,3766.4,3766.3,8.8e-06]
[1717459681686,16.13351381,3766.4,3766.3,8.8e-06]
[1717459689468,15.5674889,3766.4,3766.3,8.8e-06]
[1717459689601,16.1334889,3766.4,3766.3,8.8e-06]
[1717459690553,15.5674889,3766.4,3766.3,8.8e-06]
[1717459690896,14.24622313,3766.4,3766.3,8.8e-06]
[1717459691102,14.81222313,3766.4,3766.3,8.8e-06]
[1717459691706,14.24622313,3766.4,3766.3,8.8e-06]
[1717459692044,14.81222313,3766.4,3766.3,8.8e-06]
[1717459694137,14.2381345,3766.4,3766.3,8.8e-06]
[1717459694348,14.81215999,3766.4,3766.3,8.8e-06]
[1717459695708,14.81216003,3766.4,3766.3,8.8e-06]
[1717459696735,9.86419259,3766.4,3766.3,8.8e-06]
[1717459697045,7.20914259,3766.4,3766.3,2.3817088]
[1717459702581,4.20914259,3766.4,3766.3,2.3817088]
[1717459702731,5.79363422,3766.4,3766.3,2.3817088]
[1717459702930,3.63511706,3766.4,3766.3,2.3817088]
[1717459704254,6.63511706,3766.4,3766.3,2.3817088]
[1717459708388,6.63511706,3766.4,3766.3,8.8e-06]
[1717459709544,13.14509574,3766.4,3766.3,8.8e-06]
[1717459709759,13.69509574,3766.4,3766.3,8.8e-06]
[1717459709960,11.85869574,3766.4,3766.3,8.8e-06]
[1717459712947,15.83501151,3766.4,3766.3,8.8e-06]
[1717459713173,14.51374574,3766.4,3766.3,8.8e-06]
[1717459713390,13.76374574,3766.4,3766.3,8.8e-06]
[1717459715563,13.19774574,3766.4,3766.3,8.8e-06]
[1717459715759,13.76374574,3766.4,3766.3,8.8e-06]
[1717459716493,13.76382153,3766.4,3766.3,8.8e-06]
[1717459716871,14.51382153,3766.4,3766.3,8.8e-06]
[1717459719381,13.94782153,3766.4,3766.3,8.8e-06]
[1717459719579,14.51382153,3766.4,3766.3,8.8e-06]
[1717459720879,13.94782153,3766.4,3766.3,8.8e-06]
[1717459721086,14.51382153,3766.4,3766.3,8.8e-06]
[1717459722117,13.96382153,3766.4,3766.3,8.8e-06]
[1717459722323,13.21382153,3766.4,3766.3,8.8e-06]
[1717459724412,12.64782153,3766.4,3766.3,8.8e-06]
[1717459724614,13.21382153,3766.4,3766.3,8.8e-06]
[1717459725214,13.21380062,3766.4,3766.3,8.8e-06]
[1717459729678,15.50580062,3766.4,3766.3,8.8e-06]
[1717459729915,16.80580062,3766.4,3766.3,8.8e-06]
[1717459733552,13.39780062,3766.4,3766.3,8.8e-06]
[1717459733840,13.96380062,3766.4,3766.3,8.8e-06]
[1717459736204,13.39780062,3766.4,3766.3,8.8e-06]
[1717459736549,13.21380062,3766.4,3766.3,8.8e-06]
[1717459738049,13.76380062,3766.4,3766.3,8.8e-06]
[1717459738249,16.95980062,3766.4,3766.3,8.8e-06]
[1717459738856,14.51380062,3766.4,3766.3,8.8e-06]
[1717459740520,15.83506639,3766.4,3766.3,8.8e-06]
[1717459742533,18.22756639,3766.4,3766.3,8.8e-06]
[1717459743258,10.52496639,3766.4,3765.3,1.5e-06]
[1717459743469,2.65611,3764.9,3763.7,1.12249717]
[1717459743612,2.65674,3764.1,3763.8,2.4952]
[1717459744046,2.65674,3764.1,3764.0,2.9412]
[1717459744611,2.65674,3764.1,3764.0,2.3752]
[1717459745045,2.65674,3764.1,3764.0,2.9412]
[1717459745935,2.65674,3764.1,3764.0,2.3752]
[1717459751973,2.65645,3764.5,3764.0,3.69646577]
[1717459752186,3.0,3764.4,3764.1,2.4443]
[1717459752484,3.23142643,3764.4,3764.3,0.566]
[1717459752766,3.23142643,3764.4,3764.3,3.0103]
[1717459754718,0.23142643,3764.4,3764.3,4.33156577]
[1717459754963,3.0,3764.8,3764.3,4.33156577]
[1717459755167,3.0,3764.8,3764.7,2.961]
[1717459755710,3.0,3764.8,3764.7,2.395]
[1717459759269,3.0,3764.8,3764.7,2.961]
[1717459760496,2.65588,3765.3,3764.7,1.88726577]
[1717459760707,3.0,3765.2,3764.8,2.3489]
[1717459760877,3.0,3765.2,3765.1,0.566]
[1717459764265,3.0,3765.2,3765.1,2.9277]
[1717459765262,7.32,3765.5,3765.1,2.9277]
[1717459765466,2.65562,3765.6,3765.1,2.3617]
[1717459765467,3.0,3765.4,3765.1,2.3617]
[1717459765776,2.65562,3765.6,3765.4,2.956]
[1717459767061,3.0,3765.5,3765.4,2.956]
[1717459767623,3.23168929,3765.5,3765.4,2.956]
[1717459768646,3.23168929,3765.5,3765.4,4.27726577]
[1717459768822,0.23168929,3765.5,3765.4,4.27726577]
[1717459769159,3.0,3766.0,3765.4,4.27726577]
[1717459769308,3.0,3766.0,3765.6,0.566]
[1717459769651,2.65542,3765.9,3765.6,0.566]
[1717459769856,3.0,3765.8,3765.6,0.566]
[1717459774970,2.65554,3765.7,3765.4,0.566]
[1717459775138,11.56081544,3766.4,3765.4,0.566]
[1717459775139,2.65568,3765.5,3765.4,0.566]
[1717459775341,5.65568,3765.5,3765.4,0.566]
[1717459777615,5.65568,3765.5,3765.0,2.3035]
[1717459777738,5.65568,3765.5,3765.1,1.32126577]
[1717459777939,5.65568,3765.5,3765.3,0.566]
[1717459778882,2.6559,3765.2,3764.6,2.3444]
[1717459779035,2.6559,3765.2,3765.1,0.566]
[1717459779441,2.65625,3764.7,3764.1,2.3444]
[1717459779680,2.65625,3764.7,3764.6,0.566]
[1717459781699,2.65625,3764.7,3764.2,1.32126577]
[1717459782000,2.65625,3764.7,3764.6,0.566]
[1717459784301,2.65603,3765.1,3764.6,1.88726577]
[1717459784609,3.0,3765.0,3764.7,1.32126577]
[1717459784807,3.23192185,3765.0,3764.9,0.566]
[1717459787398,3.23192185,3765.0,3764.7,1.32126577]
[1717459787602,3.23192185,3765.0,3764.9,0.566]
[1717459789581,3.23192185,3765.0,3764.7,1.32126577]
[1717459789804,3.23192185,3765.0,3764.9,0.566]
[1717459789938,3.23192185,3765.0,3764.7,1.32126577]
[1717459790139,3.23192185,3765.0,3764.9,0.566]
[1717459792463,3.23192185,3765.0,3764.9,1.88726577]
[1717459793162,0.23192185,3765.0,3764.9,4.29956577]
[1717459793550,3.0,3765.5,3764.9,4.29956577]
[1717459793750,3.0,3765.5,3765.4,0.566]
[1717459793952,2.3382,3765.7,3765.4,1.88726577]
[1717459794256,2.3382,3766.0,3765.4,1.88726577]
[1717459794445,4.49792944,3766.0,3765.4,1.88726577]
[1717459794651,3.22943392,3765.9,3765.8,0.566]
[1717459795094,2.65544,3765.9,3765.8,0.566]
[1717459795395,5.65544,3765.9,3765.8,0.566]
[1717459797656,5.88766843,3765.9,3765.8,0.566]
[1717459800115,0.23222843,3765.9,3765.8,0.566]
[1717459800252,0.23222843,3765.9,3765.8,1.88726577]
[1717459800865,0.23222843,3765.9,3765.8,1.32126577]
[1717459801066,0.23222843,3765.9,3765.8,1.88726577]
[1717459801471,0.23222843,3765.9,3765.4,2.4853]
[1717459801671,0.23222843,3765.9,3765.4,1.32126577]
[1717459801973,2.6555,3765.8,3765.4,1.88726577]
[1717459802166,2.6555,3765.8,3765.4,1.32126577]
[1717459802364,0.23251139,3765.7,3765.4,1.32126577]
[1717459802702,2.65572,3765.5,3764.9,1.38425859]
[1717459802903,3.0,3765.4,3764.5,2.283]
[1717459803104,8.15074114,3765.7,3765.0,0.566]
[1717459803262,0.23248783,3765.3,3765.0,0.566]
[1717459803461,3.0,3765.6,3765.0,0.566]
[1717459803703,0.23248783,3765.2,3765.0,0.566]
[1717459803868,2.65586,3765.3,3765.0,0.566]
[1717459804088,0.23248783,3765.1,3765.0,0.566]
[1717459804413,2.65586,3765.3,3765.0,0.566]
[1717459804586,0.23169783,3765.1,3765.0,0.566]
[1717459804791,2.65586,3765.3,3765.0,0.566]
[1717459805007,0.23169783,3765.1,3765.0,0.566]
[1717459805253,2.65605,3765.0,3764.5,1.94094683]
[1717459805513,2.65605,3765.0,3764.9,0.566]
[1717459805716,2.65605,3765.0,3764.3,0.55649717]
[1717459805923,2.65605,3765.0,3764.8,0.566]
[1717459806879,2.65581,3765.4,3764.9,1.32126577]
[1717459807079,2.65592,3765.2,3764.4,1.38444966]
[1717459807431,3.0,3765.1,3764.5,2.24427091]
[1717459807609,3.0,3765.1,3764.6,0.92300514]
[1717459807610,2.65604,3765.0,3764.6,0.92300514]
[1717459807826,2.65604,3765.0,3764.9,0.566]
[1717459809095,3.0,3765.1,3764.9,0.566]
[1717459809345,3.0,3765.6,3765.0,1.32126577]
[1717459809644,3.0,3765.6,3765.5,0.566]
[1717459810148,2.65561,3765.6,3765.5,0.566]
[1717459810519,5.65561,3765.6,3765.5,0.566]
[1717459811121,5.65561,3765.6,3765.3,0.566]
[1717459811335,3.0,3765.5,3765.3,0.566]
[1717459811965,2.65576,3765.4,3765.3,0.566]
[1717459812123,5.65576,3765.4,3765.3,0.566]
[1717459812317,3.0,3765.4,3765.3,1.88726577]
[1717459812554,3.0,3765.7,3765.3,1.88726577]
[1717459812716,3.0,3765.7,3765.5,0.566]
[1717459815540,3.0,3765.7,3764.8,1.38449737]
[1717459815541,2.65561,3765.6,3764.8,1.38449737]
[1717459815771,3.0,3765.5,3765.4,0.566]
[1717459819598,2.65576,3765.4,3765.2,0.566]
[1717459819804,3.0,3765.5,3765.3,1.88726577]
[1717459820014,2.65562,3765.6,3765.3,1.88726577]
[1717459820158,2.65562,3765.6,3765.3,1.32126577]
[1717459820159,3.0,3765.5,3765.3,1.32126577]
[1717459820355,2.65576,3765.4,3764.8,1.38449737]
[1717459820559,2.65576,3765.4,3765.3,0.566]
[1717459820873,5.65576,3765.4,3765.3,0.566]
[1717459824761,5.65576,3765.4,3765.3,2.8917]
[1717459826517,3.0,3765.4,3765.3,2.8917]
[1717459826723,2.65563,3765.6,3765.3,2.8917]
[1717459826928,3.0,3765.5,3765.3,2.3257]
[1717459827129,3.0,3765.5,3765.4,1.88726577]
[1717459827685,3.23143171,3765.5,3765.4,1.88726577]
[1717459827884,0.23143171,3765.5,3765.4,1.88726577]
[1717459831428,4.58568569,3766.1,3765.4,3.36649416]
[1717459831639,0.23145865,3765.5,3765.4,3.26185978]
[1717459831786,7.32,3766.2,3765.4,3.36648893]
[1717459832130,7.32,3766.2,3766.1,0.566]
[1717459832829,10.32,3766.2,3766.1,0.566]
[1717459833496,5.03426,3766.1,3765.9,0.566]
[1717459833828,2.65542,3765.9,3765.4,0.55685482]
[1717459834173,2.65542,3765.9,3765.5,0.566]
[1717459834299,3.0,3765.8,3765.3,0.566]
[1717459834507,2.3152,3765.7,3764.8,0.55685482]
[1717459834702,2.3152,3765.7,3765.0,0.566]
[1717459834703,2.65582,3765.4,3765.0,0.566]
[1717459835094,2.65582,3765.4,3765.2,0.566]
[1717459835301,2.65598,3765.1,3764.7,1.32126577]
[1717459835503,5.12608,3765.1,3764.9,0.566]
[1717459836616,12.43734145,3765.6,3765.0,1.32126577]
[1717459836617,10.32,3765.6,3765.0,1.32126577]
[1717459836826,10.32,3765.6,3765.5,0.566]
[1717459837025,2.65574,3765.5,3765.0,1.32126577]
[1717459837324,3.0,3765.4,3765.3,0.566]
[1717459838717,3.0,3765.4,3765.0,1.32126577]
[1717459838887,2.65583,3765.3,3765.2,0.566]
[1717459839091,5.65583,3765.3,3765.2,0.566]
[1717459839407,5.65583,3765.3,3764.6,0.55685482]
[1717459839604,5.65583,3765.3,3764.9,0.566]
[1717459840688,3.0,3765.3,3765.1,0.566]
[1717459840893,2.65576,3765.4,3765.1,1.88726577]
[1717459841120,3.0,3765.3,3765.1,1.88726577]
[1717459842727,0.28481367,3765.2,3764.6,0.55685482]
[1717459843034,0.28481367,3765.2,3765.1,0.566]
[1717459843439,3.0,3765.3,3765.1,1.88726577]
[1717459843650,0.28481367,3765.2,3765.1,0.566]
[1717459844142,0.28486424,3765.2,3765.1,0.566]
[1717459844300,3.0,3765.6,3765.1,0.566]
[1717459844499,3.0,3765.6,3765.4,0.566]
[1717459844726,2.65561,3765.6,3765.4,1.88726577]
[1717459844934,3.0,3765.5,3765.4,1.88726577]
[1717459852589,3.0,3766.0,3765.4,1.88726577]
[1717459852743,3.00700754,3766.0,3765.6,0.566]
[1717459852942,3.0,3765.9,3765.6,0.566]
[1717459853675,2.65561,3765.7,3765.6,0.566]
[1717459853899,5.65561,3765.7,3765.6,0.566]
[1717459857744,5.94052477,3765.7,3765.6,0.566]
[1717459857947,4.99911,3765.6,3764.9,1.94143222]
[1717459858146,2.65579,3765.4,3765.3,0.566]
[1717459858499,5.65579,3765.4,3765.3,0.566]
[1717459858641,5.94070477,3765.4,3765.3,0.566]
[1717459863492,5.94070477,3765.4,3764.6,1.94143222]
[1717459863810,5.94070477,3765.4,3765.2,0.566]
[1717459866286,3.28491477,3765.4,3765.3,1.32126577]
[1717459866986,0.28491477,3765.4,3765.3,1.32126577]
[1717459867191,3.0,3765.6,3765.3,1.32126577]
[1717459867495,3.0,3765.6,3765.4,0.566]
[1717459867852,2.65568,3765.5,3764.9,1.38430203]
[1717459868090,2.65586,3765.3,3765.0,0.92292462]
[1717459868394,2.65586,3765.3,3765.2,0.566]
[1717459870667,2.65586,3765.3,3764.9,1.32126577]
[1717459870869,2.65586,3765.3,3765.1,0.566]
[1717459871806,2.65586,3765.3,3765.0,0.566]
[1717459872654,0.2848339,3765.2,3765.0,0.566]
[1717459872857,0.2848339,3765.2,3764.9,1.32126577]
[1717459873055,2.3868,3765.2,3764.9,1.32126577]
[1717459873257,2.3868,3765.2,3765.0,0.566]
[1717459873258,0.2848339,3765.1,3765.0,0.566]
[1717459875470,2.65586,3765.3,3765.0,0.566]
[1717459875700,2.65586,3765.3,3764.9,1.32126577]
[1717459875701,2.65586,3765.3,3765.2,0.566]
[1717459878321,2.65604,3765.1,3764.5,0.55713019]
[1717459878525,2.65604,3765.1,3764.4,1.38443241]
[1717459878526,2.65617,3764.9,3764.6,0.92301359]
[1717459878717,2.65617,3764.9,3764.7,0.566]
[1717459882004,4.24184622,3765.3,3764.8,1.32126577]
[1717459882203,3.0,3765.2,3765.1,0.566]
[1717459885019,2.65598,3765.1,3764.9,0.566]
[1717459886318,2.65598,3765.1,3764.8,0.566]
[1717459886885,2.65598,3765.1,3765.0,0.566]
[1717459887065,5.65598,3765.1,3765.0,0.566]
[1717459887622,5.9407263,3765.1,3765.0,0.566]
[1717459894312,5.9407263,3765.1,3764.7,0.566]
[1717459894313,8.2186263,3765.1,3764.7,0.566]
[1717459894617,8.2186263,3765.1,3764.8,1.32126577]
[1717459896775,8.2186263,3765.1,3764.8,1.88726577]
[1717459897515,8.2186263,3765.1,3764.8,0.566]
[1717459900624,5.9407263,3765.1,3764.8,1.88726577]
[1717459900829,3.2847463,3765.1,3765.0,0.566]
[1717459905829,0.2847463,3765.1,3765.0,0.566]
[1717459906244,3.0,3765.4,3765.0,0.566]
[1717459906444,3.0,3765.4,3765.2,0.566]
[1717459909258,2.65583,3765.3,3765.2,0.566]
[1717459909459,6.229896,3765.3,3765.2,0.566]
[1717459909664,6.229896,3765.3,3765.0,0.566]
[1717459909826,3.0,3765.2,3765.0,0.566]
[1717459912184,4.95727,3765.1,3764.8,0.566]
[1717459913985,2.65617,3764.9,3764.4,1.38443617]
[1717459914285,2.65617,3764.9,3764.6,0.566]
[1717459917785,0.28470924,3764.8,3764.6,0.566]
[1717459920717,2.65625,3764.7,3764.4,1.38443617]
[1717459920865,0.566,3764.5,3764.1,1.38443617]
[1717459921183,1.58570926,3764.4,3763.5,2.50756636]
[1717459921350,1.87011869,3764.4,3763.6,3.62897581]
[1717459921695,2.6566,3764.2,3763.6,1.32126577]
[1717459921905,2.6566,3764.2,3763.8,0.566]
[1717459922217,2.65674,3764.0,3763.8,1.88726577]
[1717459922694,0.28429146,3763.9,3763.8,1.88726577]
[1717459925166,2.6569,3763.8,3763.4,2.4189388]
[1717459925374,2.6569,3763.8,3763.5,1.32126577]
[1717459925713,0.28429146,3763.7,3763.5,1.32126577]
[1717459925876,0.28429146,3763.7,3763.6,0.566]
[1717459926084,2.6569,3763.8,3763.6,1.88726577]
[1717459926298,0.28429146,3763.7,3763.6,1.88726577]
[1717459926807,2.6569,3763.8,3763.6,1.88726577]
[1717459926982,0.28429146,3763.7,3763.6,1.88726577]
[1717459927178,0.28429146,3763.7,3763.4,0.1244388]
[1717459927379,2.6569,3763.8,3763.6,0.566]
[1717459927694,0.28429146,3763.7,3763.6,0.566]
[1717459927885,0.28429146,3763.7,3763.5,1.32126577]
[1717459928206,2.452,3764.1,3763.5,1.32126577]
[1717459928393,2.65696,3763.7,3763.5,1.32126577]
[1717459928596,2.65696,3763.7,3763.4,0.1244388]
[1717459928797,2.65696,3763.7,3763.6,0.566]
[1717459930486,2.65696,3763.7,3763.4,1.44570457]
[1717459930697,2.65696,3763.7,3763.5,1.88726577]
[1717459931015,2.65696,3763.7,3763.5,4.30296577]
[1717459932487,2.65696,3763.7,3763.5,1.32126577]
[1717459932702,2.65696,3763.7,3763.6,0.566]
[1717459932990,2.65696,3763.7,3763.6,1.88726577]
[1717459936763,2.65696,3763.7,3763.4,0.1244388]
[1717459937055,2.65696,3763.7,3763.4,0.6904388]
[1717459937276,0.28412293,3763.6,3763.4,0.6904388]
[1717459937962,0.28412293,3763.6,3763.5,1.32126577]
[1717459939087,2.6571,3763.5,3763.4,0.1244388]
[1717459939376,2.94099038,3763.5,3763.4,0.6904388]
[1717459939523,2.94099038,3763.5,3763.4,0.1244388]
[1717459940919,0.28389038,3763.5,3763.4,2.01170457]
[1717459941125,0.28389038,3763.5,3763.4,4.27840457]
[1717459941435,2.6566,3764.2,3763.4,4.27840457]
[1717459941618,2.6566,3764.2,3764.1,0.566]
[1717459942468,3.0,3764.5,3764.1,1.88726577]
[1717459942670,3.0,3764.5,3763.8,2.65685]
[1717459942671,3.0,3764.5,3764.4,0.566]
[1717459943431,3.0,3764.5,3764.4,1.88726577]
[1717459944097,3.0,3764.6,3764.4,1.88726577]
[1717459944256,3.0,3764.6,3764.5,1.32126577]
[1717459945796,5.65634,3764.6,3764.3,0.566]
[1717459946394,7.32,3764.7,3764.4,1.32126577]
[1717459946546,7.32,3764.7,3764.5,0.566]
[1717459946747,7.32,3764.7,3764.6,1.32126577]
[1717459947001,2.3496,3765.6,3764.6,1.32126577]
[1717459947002,19.5,3765.2,3764.6,1.32126577]
[1717459947215,19.5,3765.2,3765.1,0.566]
[1717459947389,7.32,3765.2,3765.1,0.566]